bitfinex/quotes_BTCUSD_20210402
["timestamp","ask_amount","ask_price","bid_price","bid_amount"]
[1617328203337,0.113249,58926.0,58910.0,0.254565]
[1617328203859,0.39150782,58929.0,58911.0,0.40437341]
[1617328204053,0.113249,58928.0,58912.0,0.014]
[1617328204252,0.113249,58927.0,58912.0,0.014]
[1617328204457,0.28,58928.0,58912.0,0.014]
[1617328204653,0.28,58928.0,58925.0,0.28519211]
[1617328204856,0.113249,58926.0,58925.0,0.61220211]
[1617328205054,1.39,58926.0,58925.0,0.61220211]
[1617328205255,1.503249,58926.0,58925.0,0.62520211]
[1617328206302,1.748249,58926.0,58925.0,0.62520211]
[1617328207106,2.748249,58926.0,58924.0,0.07518]
[1617328207305,1.40518842,58925.0,58908.0,0.021]
[1617328207506,0.006,58921.0,58908.0,0.021]
[1617328207706,0.113249,58920.0,58908.0,0.021]
[1617328208508,0.254599,58917.0,58908.0,0.021]
[1617328208713,0.113249,58916.0,58908.0,0.021]
[1617328208911,1.0,58915.0,58908.0,0.021]
[1617328209112,1.39150782,58915.0,58908.0,0.021]
[1617328209313,0.3,58910.0,58908.0,0.021]
[1617328209511,2.74518842,58909.0,58908.0,0.021]
[1617328209908,3.21018842,58909.0,58908.0,0.021]
[1617328210108,3.26018842,58909.0,58908.0,0.021]
[1617328210310,3.21018842,58909.0,58908.0,0.021]
[1617328210915,3.98496338,58909.0,58908.0,0.021]
[1617328211110,3.68496338,58909.0,58908.0,0.021]
[1617328211328,3.39302396,58909.0,58908.0,0.021]
[1617328212333,3.44302396,58909.0,58908.0,0.021]
[1617328216781,3.44302396,58909.0,58907.0,0.00393057]
[1617328216980,0.81449734,58908.0,58907.0,0.00393057]
[1617328217182,0.578249,58908.0,58907.0,0.00393057]
[1617328217784,0.81441297,58908.0,58907.0,0.00393057]
[1617328217983,0.96975682,58908.0,58907.0,0.00393057]
[1617328218583,0.578249,58908.0,58907.0,0.00393057]
[1617328218782,0.113249,58908.0,58907.0,0.00393057]
[1617328219225,0.77477496,58909.0,58907.0,0.00393057]
[1617328219818,0.113249,58908.0,58907.0,0.00393057]
[1617328220622,0.77477496,58909.0,58907.0,0.05564674]
[1617328220821,0.77477496,58909.0,58907.0,0.13946057]
[1617328221026,0.77477496,58909.0,58907.0,0.70508057]
[1617328221224,0.77477496,58909.0,58908.0,2.378193]
[1617328221423,0.77477496,58909.0,58908.0,2.523193]
[1617328222031,0.77477496,58909.0,58908.0,0.533193]
[1617328222332,0.77477496,58909.0,58908.0,1.568193]
[1617328223333,0.77477496,58909.0,58908.0,2.058193]
[1617328224762,0.77477496,58909.0,58908.0,0.388193]
[1617328225562,0.77477496,58909.0,58908.0,0.383193]
[1617328225763,0.77477496,58909.0,58907.0,0.06952848]
[1617328225964,0.77477496,58909.0,58907.0,0.00650848]
[1617328226564,0.118225,58908.0,58907.0,0.00650848]
[1617328226764,0.57016442,58908.0,58907.0,0.00650848]
[1617328226969,0.56516442,58908.0,58907.0,0.00650848]
[1617328227786,0.273225,58908.0,58907.0,0.00650848]
[1617328228188,0.37353869,58908.0,58907.0,0.00650848]
[1617328228387,1.363225,58908.0,58907.0,0.00650848]
[1617328228984,1.663225,58908.0,58907.0,0.00650848]
[1617328229384,0.663225,58908.0,58907.0,0.00650848]
[1617328229589,1.95516442,58908.0,58907.0,0.00650848]
[1617328229819,0.113221,58904.0,58891.0,0.00198656]
[1617328230013,0.113221,58904.0,58888.0,0.0009941]
[1617328230014,0.18114982,58899.0,58888.0,0.0009941]
[1617328230214,0.18114982,58899.0,58887.0,0.05076276]
[1617328230215,0.0052,58895.0,58887.0,0.05076276]
[1617328230417,0.113221,58894.0,58887.0,0.05076276]
[1617328230610,0.113221,58890.0,58887.0,0.05076276]
[1617328230812,0.29643344,58889.0,58887.0,0.05076276]
[1617328231011,2.153221,58888.0,58887.0,0.05076276]
[1617328231210,2.373221,58888.0,58887.0,0.05076276]
[1617328234068,1.313221,58888.0,58887.0,0.05076276]
[1617328234467,0.333221,58888.0,58887.0,0.05076276]
[1617328234665,0.113221,58888.0,58887.0,0.05076276]
[1617328235276,1.023221,58888.0,58887.0,0.05076276]
[1617328235471,1.31965444,58888.0,58887.0,0.05076276]
[1617328235672,1.51465444,58888.0,58887.0,0.05076276]
[1617328235872,1.218221,58888.0,58887.0,0.05076276]
[1617328236072,1.728221,58888.0,58887.0,0.05076276]
[1617328236272,1.218221,58888.0,58887.0,0.05076276]
[1617328236675,0.308221,58888.0,58887.0,0.05076276]
[1617328236872,0.113221,58888.0,58887.0,0.09076276]
[1617328237474,0.113221,58888.0,58887.0,0.10276276]
[1617328237886,0.113221,58888.0,58887.0,0.05076276]
[1617328238082,1.823221,58888.0,58887.0,0.05076276]
[1617328238284,2.093221,58888.0,58887.0,0.05076276]
[1617328238684,2.093221,58888.0,58887.0,0.10376276]
[1617328239083,0.383221,58888.0,58887.0,0.14376276]
[1617328239284,0.113221,58888.0,58887.0,0.14376276]
[1617328240091,0.29643344,58896.0,58887.0,0.14376276]
[1617328240319,0.113221,58895.0,58887.0,0.14376276]
[1617328241521,0.29643344,58894.0,58887.0,0.09076276]
[1617328241720,0.29643344,58894.0,58888.0,0.053]
[1617328241721,0.113221,58893.0,58888.0,0.053]
[1617328242019,0.29643344,58892.0,58888.0,0.053]
[1617328242217,1.603221,58889.0,58888.0,0.053]
[1617328242419,1.49,58889.0,58888.0,0.053]
[1617328242621,1.823221,58889.0,58888.0,0.053]
[1617328243241,0.333221,58889.0,58888.0,0.053]
[1617328243442,0.113221,58889.0,58888.0,0.053]
[1617328243842,0.113221,58889.0,58887.0,0.05076276]
[1617328244043,0.29643344,58896.0,58887.0,0.05076276]
[1617328244242,0.113221,58895.0,58888.0,0.026]
[1617328244644,0.29643344,58896.0,58889.0,0.01]
[1617328244841,0.29643344,58896.0,58890.0,0.026]
[1617328245041,2.143221,58891.0,58890.0,0.026]
[1617328245457,2.468221,58891.0,58890.0,0.026]
[1617328246461,0.428221,58891.0,58890.0,0.026]
[1617328246669,0.39827572,58891.0,58890.0,0.026]
[1617328246861,0.103221,58891.0,58890.0,0.026]
[1617328247064,0.843221,58891.0,58890.0,0.026]
[1617328247263,1.13827572,58891.0,58890.0,0.026]
[1617328247465,1.30827572,58891.0,58890.0,0.026]
[1617328247668,1.013221,58891.0,58890.0,0.026]
[1617328247868,1.30827572,58891.0,58889.0,0.00324793]
[1617328248312,0.333208,58890.0,58889.0,0.00324793]
[1617328248513,0.333208,58890.0,58889.0,0.02924793]
[1617328248711,0.333208,58890.0,58889.0,0.03924793]
[1617328249003,2.173208,58890.0,58889.0,0.03924793]
[1617328249205,0.103208,58890.0,58889.0,0.03924793]
[1617328250016,0.553208,58890.0,58889.0,0.03924793]
[1617328251007,1.53826272,58890.0,58889.0,0.03924793]
[1617328251807,1.53826272,58890.0,58889.0,0.00324793]
[1617328252005,1.81826272,58890.0,58889.0,0.00324793]
[1617328253828,1.523208,58890.0,58889.0,0.00324793]
[1617328256052,1.823208,58890.0,58889.0,0.00324793]
[1617328256250,1.523208,58890.0,58889.0,0.00324793]
[1617328257851,1.243208,58890.0,58889.0,0.00324793]
[1617328259482,0.553208,58890.0,58889.0,0.00324793]
[1617328260084,0.553208,58890.0,58889.0,7.93e-06]
[1617328260085,1.763208,58890.0,58889.0,7.93e-06]
[1617328260286,1.7642059,58890.0,58889.0,7.93e-06]
[1617328260488,1.763208,58890.0,58889.0,7.93e-06]
[1617328260686,1.76520376,58890.0,58889.0,7.93e-06]
[1617328260883,0.72520376,58890.0,58889.0,0.00051793]
[1617328261087,0.8584008,58890.0,58889.0,0.00051793]
[1617328261329,1.89640504,58890.0,58889.0,0.00051793]
[1617328261530,0.89740225,58890.0,58889.0,0.00051793]
[1617328261729,2.44740225,58890.0,58889.0,0.00051793]
[1617328261930,2.44640504,58890.0,58889.0,0.00051793]
[1617328263730,2.313208,58890.0,58889.0,0.00051793]
[1617328265143,2.313208,58890.0,58889.0,0.2423203]
[1617328265547,2.313208,58890.0,58889.0,0.00051793]
[1617328267572,2.31420529,58890.0,58889.0,0.00051793]
[1617328269375,2.45577175,58890.0,58889.0,0.00051793]
[1617328269577,2.45477446,58890.0,58889.0,0.00051793]
[1617328270176,2.45676974,58890.0,58889.0,0.00051793]
[1617328270577,2.45477446,58890.0,58889.0,0.00051793]
[1617328270975,2.45676987,58890.0,58889.0,0.00051793]
[1617328271379,2.45477446,58890.0,58889.0,0.00051793]
[1617328271576,2.49477446,58890.0,58889.0,0.00051793]
[1617328271806,2.49676987,58890.0,58889.0,0.00051793]
[1617328272005,2.45676987,58890.0,58889.0,0.00051793]
[1617328272606,2.45676987,58890.0,58889.0,0.00472181]
[1617328272808,2.45477446,58890.0,58889.0,0.00472181]
[1617328273009,2.4557721,58890.0,58889.0,0.00472181]
[1617328273209,2.45477446,58890.0,58889.0,0.00472181]
[1617328274434,2.42980895,58890.0,58889.0,0.00472181]
[1617328274631,2.43180428,58890.0,58889.0,0.00472181]
[1617328275434,2.42980895,58890.0,58889.0,0.00472181]
[1617328275634,2.43180427,58890.0,58889.0,0.00472181]
[1617328276035,2.47180427,58890.0,58889.0,0.00472181]
[1617328276234,2.46980895,58890.0,58889.0,0.00472181]
[1617328276834,2.43180425,58890.0,58889.0,0.00472181]
[1617328277251,2.42980895,58890.0,58889.0,0.00472181]
[1617328278652,2.43180425,58890.0,58889.0,0.00472181]
[1617328278850,2.42980895,58890.0,58889.0,0.00472181]
[1617328279289,2.43180425,58890.0,58889.0,0.00472181]
[1617328280511,2.04,58889.0,58887.0,0.05048457]
[1617328280712,2.11923866,58888.0,58887.0,0.05048457]
[1617328280910,2.16923866,58888.0,58887.0,0.05048457]
[1617328281713,2.30980746,58888.0,58887.0,0.05048457]
[1617328281916,2.71480746,58888.0,58887.0,0.05048457]
[1617328284315,2.71680364,58888.0,58887.0,0.05048457]
[1617328284937,2.71480746,58888.0,58887.0,0.05048457]
[1617328285336,2.71680364,58888.0,58887.0,0.05048457]
[1617328286138,0.62580554,58888.0,58887.0,0.05048457]
[1617328286338,0.07923908,58888.0,58887.0,0.05048457]
[1617328286540,1.218241,58888.0,58887.0,0.05048457]
[1617328287339,1.35980746,58888.0,58887.0,0.05048457]
[1617328287555,2.59980746,58888.0,58887.0,0.04548457]
[1617328288757,1.69980746,58888.0,58887.0,0.04548457]
[1617328288959,1.70080551,58888.0,58887.0,0.04548457]
[1617328289160,1.69980746,58888.0,58887.0,0.04548457]
[1617328289562,1.558241,58888.0,58887.0,0.04548457]
[1617328289961,1.508241,58888.0,58887.0,0.04548457]
[1617328290380,1.508241,58888.0,58887.0,0.05748457]
[1617328290781,1.50923907,58888.0,58887.0,0.05748457]
[1617328290980,1.50923907,58888.0,58887.0,0.06748457]
[1617328291383,1.508241,58888.0,58887.0,0.06748457]
[1617328291582,1.508241,58888.0,58887.0,0.11848457]
[1617328291983,1.508241,58888.0,58887.0,0.15848457]
[1617328292182,1.218241,58888.0,58887.0,0.15848457]
[1617328292583,0.00099804,58890.0,58887.0,0.10848457]
[1617328293009,0.00099804,58892.0,58887.0,0.10848457]
[1617328293407,1.578241,58888.0,58887.0,0.15848457]
[1617328293807,1.813241,58888.0,58887.0,0.10348457]
[1617328294630,1.813241,58888.0,58887.0,0.15348457]
[1617328295448,2.353241,58888.0,58887.0,0.15348457]
[1617328296249,1.813241,58888.0,58887.0,0.15348457]
[1617328297250,1.813241,58888.0,58887.0,0.13348457]
[1617328297652,1.81423927,58888.0,58887.0,0.11648457]
[1617328298059,1.813241,58888.0,58887.0,0.11648457]
[1617328298259,1.81423927,58888.0,58887.0,0.11648457]
[1617328298459,1.81423927,58888.0,58887.0,0.11906857]
[1617328299060,1.813241,58888.0,58887.0,0.11906857]
[1617328300060,1.81423903,58888.0,58887.0,0.11906857]
[1617328300462,2.353241,58888.0,58887.0,0.11906857]
[1617328300680,1.813241,58888.0,58887.0,0.11906857]
[1617328301481,2.35523678,58888.0,58887.0,0.11906857]
[1617328301881,2.353241,58888.0,58887.0,0.11906857]
[1617328302082,2.35523677,58888.0,58887.0,0.11906857]
[1617328302285,2.353241,58888.0,58887.0,0.11906857]
[1617328303084,2.35523597,58888.0,58887.0,0.11906857]
[1617328303508,2.353241,58888.0,58887.0,0.11906857]
[1617328303908,2.35523585,58888.0,58887.0,0.11906857]
[1617328304110,2.35423854,58888.0,58887.0,0.11906857]
[1617328304310,2.353241,58888.0,58887.0,0.11906857]
[1617328305309,1.798241,58888.0,58887.0,0.11906857]
[1617328305514,1.80023632,58888.0,58887.0,0.04306857]
[1617328305711,1.85023632,58888.0,58887.0,0.04306857]
[1617328306134,1.85023632,58888.0,58887.0,0.08906857]
[1617328306335,2.39023632,58888.0,58887.0,0.08906857]
[1617328306535,2.39023632,58888.0,58887.0,0.04306857]
[1617328307136,1.848241,58888.0,58887.0,0.04306857]
[1617328307535,1.85023596,58888.0,58887.0,0.04306857]
[1617328307937,1.848241,58888.0,58887.0,0.04306857]
[1617328308337,1.848241,58888.0,58887.0,0.03306857]
[1617328308557,1.84923891,58888.0,58887.0,0.03306857]
[1617328308757,1.848241,58888.0,58887.0,0.03306857]
[1617328309756,1.85023622,58888.0,58887.0,0.03306857]
[1617328309957,1.848241,58888.0,58887.0,0.03306857]
[1617328310959,1.84923854,58888.0,58887.0,0.03306857]
[1617328312205,2.38923854,58888.0,58887.0,0.03306857]
[1617328313207,2.388241,58888.0,58887.0,0.03306857]
[1617328313812,2.38923694,58888.0,58887.0,0.03306857]
[1617328315014,2.388241,58888.0,58887.0,0.03306857]
[1617328315811,0.348241,58888.0,58887.0,0.03306857]
[1617328316213,1.40923606,58888.0,58887.0,0.03306857]
[1617328316445,0.348241,58888.0,58887.0,0.03306857]
[1617328316644,0.34923653,58888.0,58887.0,0.03306857]
[1617328317050,0.0009958,58890.0,58887.0,0.5877652]
[1617328317245,0.0009958,58890.0,58888.0,0.388472]
[1617328317445,0.00099642,58895.0,58889.0,0.225]
[1617328317648,0.00099661,58896.0,58889.0,0.225]
[1617328317848,0.00099661,58898.0,58890.0,0.49823942]
[1617328318047,0.00199323,58899.0,58897.0,0.14660549]
[1617328318449,0.00099684,58899.0,58898.0,0.86981]
[1617328318654,0.0009971,58900.0,58898.0,1.01981]
[1617328319460,0.0009971,58900.0,58898.0,0.86981]
[1617328320264,0.00099736,58903.0,58898.0,0.86981]
[1617328321068,1.0,58902.0,58898.0,0.5]
[1617328321271,0.00099709,58900.0,58898.0,0.5]
[1617328321469,0.00099709,58900.0,58890.0,0.00199628]
[1617328321470,0.0042,58897.0,58890.0,0.00099814]
[1617328321692,0.0042,58897.0,58888.0,0.0019963]
[1617328321693,0.06324,58895.0,58888.0,0.00099818]
[1617328321895,0.06324,58891.0,58887.0,0.03306857]
[1617328322096,2.10324,58888.0,58887.0,0.03306857]
[1617328322295,2.84817,58888.0,58887.0,0.03306857]
[1617328322489,2.89817,58888.0,58887.0,0.03306857]
[1617328323289,3.237865,58888.0,58887.0,0.03306857]
[1617328323690,3.727865,58888.0,58887.0,0.03306857]
[1617328324319,3.477865,58888.0,58887.0,0.03306857]
[1617328325322,3.48886009,58888.0,58887.0,0.03306857]
[1617328325730,3.487865,58888.0,58887.0,0.03306857]
[1617328325922,1.447865,58888.0,58887.0,0.03306857]
[1617328326124,0.822935,58888.0,58887.0,0.03306857]
[1617328326324,0.48324,58888.0,58887.0,0.03306857]
[1617328327158,0.60324,58888.0,58887.0,0.03306857]
[1617328327958,0.11324,58888.0,58887.0,0.03306857]
[1617328328156,0.06324,58888.0,58887.0,0.03306857]
[1617328328355,0.04,58889.0,58887.0,0.03306857]
[1617328328955,0.04,58891.0,58887.0,0.03306857]
[1617328329158,0.06324,58890.0,58887.0,0.03306857]
[1617328330168,0.04099518,58895.0,58887.0,0.03306857]
[1617328330369,0.00099526,58896.0,58889.0,0.158]
[1617328330569,0.00099566,58898.0,58890.0,0.388472]
[1617328330769,0.00199133,58900.0,58890.0,0.558472]
[1617328330770,0.00099511,58899.0,58890.0,0.558472]
[1617328330967,0.00099511,58899.0,58891.0,0.225]
[1617328331367,0.00099511,58899.0,58889.0,0.00399624]
[1617328331569,0.00099511,58899.0,58889.0,0.002]
[1617328331774,0.06324,58898.0,58889.0,0.002]
[1617328337215,0.254676,58900.0,58889.0,0.002]
[1617328337442,0.06324,58899.0,58889.0,0.002]
[1617328337644,0.254676,58900.0,58889.0,0.002]
[1617328338243,0.05058988,58901.0,58889.0,0.002]
[1617328338445,0.06324,58906.0,58889.0,0.002]
[1617328338645,0.52324,58906.0,58889.0,0.002]
[1617328338845,0.0046,58901.0,58889.0,0.002]
[1617328339248,0.254688,58897.0,58887.0,0.13552857]
[1617328339445,0.0046,58895.0,58887.0,0.13752857]
[1617328339649,0.06324,58894.0,58887.0,0.03506857]
[1617328340260,0.06324,58894.0,58887.0,0.03306857]
[1617328341065,0.2925163,58893.0,58887.0,0.03306857]
[1617328341265,0.06324,58889.0,58887.0,0.03306857]
[1617328341463,2.10324,58888.0,58887.0,0.03306857]
[1617328341662,2.15324,58888.0,58887.0,0.03306857]
[1617328342266,2.56324,58888.0,58887.0,0.03306857]
[1617328342892,1.13324,58888.0,58887.0,0.03306857]
[1617328343092,0.52324,58888.0,58887.0,0.03306857]
[1617328343291,0.11324,58888.0,58887.0,0.03306857]
[1617328343690,0.06324,58888.0,58887.0,0.03306857]
[1617328343892,1.01324,58888.0,58887.0,0.03306857]
[1617328344091,1.25824,58888.0,58887.0,0.03306857]
[1617328344293,1.25824,58888.0,58887.0,0.03646545]
[1617328344492,1.25453921,58888.0,58887.0,0.03646545]
[1617328345716,0.30453921,58888.0,58887.0,0.03646545]
[1617328345919,0.10953921,58888.0,58887.0,0.03646545]
[1617328346119,0.06792363,58894.0,58887.0,0.03646545]
[1617328346720,0.06324,58893.0,58887.0,0.03646545]
[1617328346919,0.317951,58893.0,58887.0,0.03646545]
[1617328347120,0.367951,58893.0,58887.0,0.03646545]
[1617328347321,0.135,58892.0,58887.0,0.03646545]
[1617328347524,0.06324,58891.0,58887.0,0.03646545]
[1617328347941,0.135,58892.0,58887.0,0.03646545]
[1617328347942,0.06324,58888.0,58887.0,0.03646545]
[1617328348143,2.09324,58888.0,58887.0,0.03646545]
[1617328348352,3.37279,58888.0,58887.0,0.03646545]
[1617328348747,3.13279,58888.0,58887.0,0.03646545]
[1617328349343,3.27435646,58888.0,58887.0,0.03646545]
[1617328350668,3.26975646,58888.0,58887.0,0.03646545]
[1617328350869,3.01975646,58888.0,58887.0,0.03646545]
[1617328352070,2.96975646,58888.0,58887.0,0.03646545]
[1617328353298,3.01975646,58888.0,58887.0,0.03646545]
[1617328356530,2.96975646,58888.0,58887.0,0.03646545]
[1617328358134,3.01975646,58888.0,58887.0,0.03646545]
[1617328358331,3.15982646,58888.0,58887.0,0.03646545]
[1617328361376,3.21224646,58888.0,58887.0,0.03646545]
[1617328361976,3.46224646,58888.0,58887.0,0.03646545]
[1617328362175,3.80224646,58888.0,58887.0,0.03646545]
[1617328362476,3.80522819,58888.0,58887.0,0.03646545]
[1617328362876,3.16224646,58888.0,58887.0,0.03646545]
[1617328363082,2.6177882,58888.0,58887.0,0.03646545]
[1617328363475,2.61480646,58888.0,58887.0,0.03646545]
[1617328364098,2.61679431,58888.0,58887.0,0.03646545]
[1617328364700,2.61480646,58888.0,58887.0,0.03646545]
[1617328365303,0.58480646,58888.0,58887.0,0.03646545]
[1617328365500,0.44324,58888.0,58887.0,0.03646545]
[1617328365708,0.06324,58888.0,58887.0,0.03646545]
[1617328366321,0.05247312,58892.0,58887.0,0.03646545]
[1617328366521,0.06324,58891.0,58887.0,0.03646545]
[1617328366726,0.00099415,58893.0,58887.0,0.03646545]
[1617328366924,0.00099433,58895.0,58888.0,0.388472]
[1617328367324,0.00099482,58896.0,58888.0,0.388472]
[1617328367521,0.00099482,58896.0,58889.0,0.22]
[1617328367722,0.00099482,58896.0,58890.0,0.388472]
[1617328368521,0.00099482,58896.0,58887.0,0.73755175]
[1617328368723,0.00099482,58896.0,58888.0,0.388472]
[1617328368949,0.00099505,58897.0,58888.0,0.388472]
[1617328369147,0.00099505,58897.0,58887.0,0.73755175]
[1617328369765,0.00099505,58897.0,58887.0,0.99221175]
[1617328369953,0.00099505,58897.0,58887.0,0.69969545]
[1617328370956,0.00099505,58897.0,58888.0,0.388472]
[1617328371154,0.00099505,58897.0,58887.0,0.69969545]
[1617328371355,0.00099505,58897.0,58887.0,0.44503545]
[1617328373091,0.00099466,58896.0,58887.0,0.44503545]
[1617328373494,0.00099466,58896.0,58887.0,0.36256545]
[1617328375503,1.00099466,58896.0,58887.0,0.36256545]
[1617328375708,0.26032,58893.0,58887.0,0.03646545]
[1617328375906,0.06324,58889.0,58887.0,0.03646545]
[1617328376303,2.09324,58888.0,58887.0,0.03646545]
[1617328376504,2.14324,58888.0,58887.0,0.03646545]
[1617328376706,2.45324,58888.0,58887.0,0.03646545]
[1617328380146,2.40324,58888.0,58887.0,0.03646545]
[1617328380546,2.45324,58888.0,58887.0,0.03646545]
[1617328380748,2.40324,58888.0,58887.0,0.03646545]
[1617328381546,0.37324,58888.0,58887.0,0.03646545]
[1617328381946,0.06324,58888.0,58887.0,0.03646545]
[1617328382194,0.254711,58892.0,58887.0,0.03646545]
[1617328384589,0.254711,58892.0,58887.0,0.02760789]
[1617328384816,0.06324,58891.0,58887.0,0.02760789]
[1617328385418,0.11324,58891.0,58887.0,0.02760789]
[1617328385616,0.06324,58891.0,58887.0,0.02760789]
[1617328386617,2.26324,58888.0,58887.0,0.02760789]
[1617328387215,0.36324,58888.0,58887.0,0.02760789]
[1617328387423,1.36324,58888.0,58887.0,0.02760789]
[1617328388221,1.35824,58888.0,58887.0,0.02760789]
[1617328389826,0.05824,58888.0,58887.0,0.02760789]
[1617328390048,0.05824,58888.0,58887.0,0.03019192]
[1617328390849,0.254721,58889.0,58887.0,0.03019192]
[1617328391251,0.88824,58888.0,58887.0,0.03019192]
[1617328391654,1.05824,58888.0,58887.0,0.03019192]
[1617328392255,0.22824,58888.0,58887.0,0.03019192]
[1617328392459,0.05824,58888.0,58887.0,0.03019192]
[1617328393267,0.64824,58888.0,58887.0,0.03019192]
[1617328393667,0.05824,58888.0,58887.0,0.03019192]
[1617328393869,0.254721,58889.0,58887.0,0.02519192]
[1617328394671,1.45824,58888.0,58887.0,0.02519192]
[1617328394868,1.71324,58888.0,58887.0,0.02519192]
[1617328395071,1.71324,58888.0,58887.0,0.01519192]
[1617328395299,0.31324,58888.0,58887.0,0.01519192]
[1617328395496,0.25569023,58893.0,58887.0,0.01519192]
[1617328395695,0.254698,58893.0,58887.0,0.01519192]
[1617328396500,0.254698,58893.0,58888.0,0.20866179]
[1617328396698,0.05824,58892.0,58888.0,0.20866179]
[1617328397098,0.05824,58892.0,58887.0,0.01519192]
[1617328397699,0.254698,58893.0,58887.0,0.01519192]
[1617328399821,0.05824,58892.0,58887.0,0.01519192]
[1617328401253,0.05224,58892.0,58887.0,0.01519192]
[1617328401856,0.254698,58893.0,58887.0,0.01519192]
[1617328402656,0.06792275,58894.0,58887.0,0.01519192]
[1617328403676,0.052242,58893.0,58887.0,0.01519192]
[1617328404277,0.15,58892.0,58887.0,0.01519192]
[1617328404476,0.052242,58891.0,58887.0,0.01519192]
[1617328404877,0.05,58893.0,58889.0,0.254697]
[1617328405076,0.004,58894.0,58889.0,0.254697]
[1617328405476,0.05608146,58895.0,58889.0,0.254697]
[1617328405700,0.00499173,58895.0,58889.0,0.254697]
[1617328406303,0.004,58895.0,58889.0,0.254697]
[1617328406702,0.00519162,58898.0,58889.0,0.254697]
[1617328407504,0.00099168,58897.0,58889.0,0.254697]
[1617328407704,0.08743513,58900.0,58889.0,0.254697]
[1617328407903,0.004,58898.0,58889.0,0.254697]
[1617328408319,0.30767287,58901.0,58889.0,0.254697]
[1617328408520,0.004,58900.0,58889.0,0.254697]
[1617328408721,0.052242,58899.0,58889.0,0.254697]
[1617328409322,0.30694,58899.0,58887.0,0.01719192]
[1617328409523,0.35694,58899.0,58887.0,0.01719192]
[1617328409723,0.3599153,58899.0,58887.0,0.01719192]
[1617328410723,0.42783456,58899.0,58887.0,0.01719192]
[1617328411145,0.47933288,58899.0,58887.0,0.01719192]
[1617328411345,0.42783456,58899.0,58887.0,0.01719192]
[1617328411747,0.42485926,58899.0,58887.0,0.27188392]
[1617328414663,0.42485926,58899.0,58887.0,0.26988392]
[1617328417065,0.76310926,58899.0,58887.0,0.26988392]
[1617328417269,0.2,58898.0,58887.0,0.26988392]
[1617328417467,0.306932,58897.0,58887.0,0.01519192]
[1617328417674,0.0029792,58895.0,58887.0,0.01519192]
[1617328417868,0.222242,58894.0,58887.0,0.01519192]
[1617328418071,0.22522084,58894.0,58887.0,0.01519192]
[1617328419283,0.222242,58894.0,58887.0,0.01519192]
[1617328419681,0.175,58893.0,58887.0,0.01519192]
[1617328419883,0.052242,58892.0,58887.0,0.01519192]
[1617328420883,0.00297895,58895.0,58887.0,0.01519192]
[1617328421084,0.12082962,58896.0,58887.0,0.01519192]
[1617328421517,0.192242,58895.0,58887.0,0.01519192]
[1617328421716,0.242242,58895.0,58887.0,0.01519192]
[1617328422117,0.242242,58895.0,58887.0,0.01818824]
[1617328422922,0.19,58895.0,58888.0,0.10976742]
[1617328423118,0.19,58895.0,58888.0,0.10776378]
[1617328423319,0.05,58895.0,58887.0,0.01818826]
[1617328423519,0.05,58895.0,58888.0,0.388459]
[1617328423717,0.31167022,58897.0,58888.0,0.388459]
[1617328423918,0.25869,58897.0,58889.0,0.14]
[1617328424336,0.054,58897.0,58888.0,0.00299632]
[1617328424737,0.004,58897.0,58888.0,0.00299632]
[1617328426138,0.00697981,58897.0,58887.0,0.01818824]
[1617328426340,0.26167181,58897.0,58887.0,0.01818824]
[1617328426538,0.30767181,58897.0,58887.0,0.01818824]
[1617328426769,0.25767181,58897.0,58887.0,0.01818824]
[1617328426972,0.254692,58897.0,58888.0,0.00299632]
[1617328427372,0.67,58896.0,58887.0,0.03316324]
[1617328427571,0.155,58895.0,58887.0,0.03316324]
[1617328427771,0.207242,58895.0,58887.0,0.03316324]
[1617328427970,0.155,58895.0,58887.0,0.03316324]
[1617328428173,0.155,58895.0,58887.0,0.01318818]
[1617328428774,0.052242,58894.0,58887.0,0.01318818]
[1617328428972,0.145,58893.0,58887.0,0.01318818]
[1617328429404,0.195,58893.0,58888.0,0.388459]
[1617328429618,0.05,58893.0,58888.0,0.388459]
[1617328430016,0.004,58897.0,58888.0,0.388459]
[1617328430215,0.004,58897.0,58887.0,0.01318818]
[1617328434945,0.004,58897.0,58888.0,0.10476742]
[1617328435148,0.004,58897.0,58887.0,0.01318818]
[1617328436949,0.044,58897.0,58887.0,0.01318818]
[1617328437364,0.254691,58896.0,58887.0,0.01318818]
[1617328437764,0.304691,58896.0,58887.0,0.01318818]
[1617328437966,1.0,58895.0,58887.0,0.01318818]
[1617328438368,0.254722,58891.0,58887.0,0.01318818]
[1617328438570,0.052242,58890.0,58887.0,0.01318818]
[1617328439164,0.102242,58890.0,58887.0,0.01318818]
[1617328439570,0.2892716,58889.0,58887.0,0.01318818]
[1617328439768,0.3415136,58889.0,58887.0,0.01318818]
[1617328439987,0.3915136,58889.0,58887.0,0.01318818]
[1617328440187,2.082242,58888.0,58887.0,0.01318818]
[1617328440390,2.332242,58888.0,58887.0,0.01318818]
[1617328440589,2.542242,58888.0,58887.0,0.01318818]
[1617328441591,2.492242,58888.0,58887.0,0.01318818]
[1617328442617,0.462242,58888.0,58887.0,0.01318818]
[1617328442818,1.002242,58888.0,58887.0,0.01318818]
[1617328443022,1.052242,58888.0,58887.0,0.01318818]
[1617328443617,0.102242,58888.0,58887.0,0.01318818]
[1617328443822,1.032242,58888.0,58887.0,0.01318818]
[1617328444016,0.302242,58888.0,58887.0,0.01318818]
[1617328444662,0.25,58888.0,58887.0,0.01318818]
[1617328444859,0.05,58889.0,58887.0,0.01318818]
[1617328445057,0.06792575,58892.0,58887.0,0.01318818]
[1617328445258,0.052242,58890.0,58887.0,0.01318818]
[1617328445661,0.06792575,58892.0,58887.0,0.01318818]
[1617328445859,0.06792575,58892.0,58887.0,0.00478818]
[1617328446259,0.052242,58891.0,58887.0,0.00478818]
[1617328446463,0.102242,58891.0,58887.0,0.00478818]
[1617328447907,0.3915136,58891.0,58887.0,0.00478818]
[1617328448286,0.145,58890.0,58887.0,0.00478818]
[1617328448488,0.052242,58889.0,58887.0,0.00478818]
[1617328449093,0.254711,58890.0,58887.0,0.00478818]
[1617328449691,0.339607,58898.0,58887.0,0.00478818]
[1617328449891,0.2,58897.0,58887.0,0.00478818]
[1617328450091,0.25,58897.0,58887.0,0.00478818]
[1617328450695,0.254705,58894.0,58887.0,0.00478818]
[1617328451097,0.304705,58894.0,58887.0,0.00478818]
[1617328451496,0.14,58893.0,58887.0,0.00478818]